lending/lending_fUSD_20250121
["ID","MTS","AMOUNT","RATE_DAILY","PERIOD"]
[349789645,1737431449976,-500.0,0.00019726,2]
[349789646,1737431449986,-500.0,0.00019726,2]
[349789647,1737431449995,-504.60465635,0.00019726,2]
[349789648,1737431450004,-214.57656946,0.00019726,2]
[349789649,1737431450013,-500.0,0.00019726,2]
[349789650,1737431450022,-500.0,0.00019726,2]
[349789651,1737431450031,-500.0,0.00019726,2]
[349789652,1737431450040,-500.0,0.00019726,2]
[349789653,1737431450049,-500.0,0.00019726,2]
[349789654,1737431450058,-160.70862136,0.00019726,2]
[349789655,1737431450068,-595.99937354,0.00019726,2]
[349789656,1737431450077,-511.6635959,0.00019726,2]
[349789657,1737431450087,-500.0,0.00019726,2]
[349789658,1737431450096,-500.0,0.00019726,2]
[349789659,1737431450105,-500.0,0.00019726,2]
[349789660,1737431450114,-511.89689085,0.00019726,2]
[349789661,1737431450123,-400.88495016,0.00019726,2]
[349789662,1737431450132,-643.06,0.00019726,2]
[349789663,1737431450141,-500.0,0.00019726,2]
[349789664,1737431450151,-500.0,0.00019726,2]
[349789665,1737431450161,-500.0,0.00019726,2]
[349789666,1737431450170,-500.0,0.00019726,2]
[349789667,1737431450179,-500.0,0.00019726,2]
[349789668,1737431450188,-517.02002139,0.00019726,2]
[349789669,1737431450197,-500.0,0.00019726,2]
[349789670,1737431450206,-500.0,0.00019726,2]
[349789671,1737431450216,-500.0,0.00019726,2]
[349789672,1737431450225,-804.89,0.00019726,2]
[349789673,1737431450235,-508.83939441,0.00019726,2]
[349789674,1737431450246,-500.0,0.00019726,2]
[349789675,1737431450255,-500.0,0.00019726,2]
[349789676,1737431450264,-500.0,0.00019726,2]
[349789677,1737431450273,-500.0,0.00019726,2]
[349789678,1737431450283,-500.0,0.00019726,2]
[349789679,1737431450292,-500.0,0.00019726,2]
[349789680,1737431450301,-500.0,0.00019726,2]
[349789681,1737431450311,-500.0,0.00019726,2]
[349789682,1737431450320,-500.0,0.00019726,2]
[349789683,1737431450330,-500.0,0.00019726,2]
[349789684,1737431450339,-500.0,0.00019726,2]
[349789685,1737431450348,-500.0,0.00019726,2]
[349789686,1737431450358,-500.0,0.00019726,2]
[349789687,1737431450367,-500.0,0.00019726,2]
[349789688,1737431450378,-500.0,0.00019726,2]
[349789689,1737431450387,-500.0,0.00019726,2]
[349789690,1737431450400,-500.0,0.00019726,2]
[349789691,1737431450409,-500.0,0.00019726,2]
[349789692,1737431450419,-500.0,0.00019726,2]
[349789693,1737431450428,-520.25,0.00019726,2]
[349789694,1737431450439,-500.0,0.00019726,2]
[349789695,1737431450448,-500.0,0.00019726,2]
[349789696,1737431450458,-500.0,0.00019726,2]
[349789697,1737431450468,-500.0,0.00019726,2]
[349789698,1737431450477,-500.0,0.00019726,2]
[349789699,1737431450488,-510.42838315,0.00019726,2]
[349789700,1737431450498,-500.0,0.00019726,2]
[349789701,1737431450507,-199.37764848,0.00019726,2]
[349789702,1737431450516,-997.65,0.00019726,2]
[349789703,1737431450526,-500.0,0.00019726,2]
[349789704,1737431450536,-500.0,0.00019726,2]
[349789705,1737431450545,-500.0,0.00019726,2]
[349789706,1737431450555,-500.0,0.00019726,2]
[349789707,1737431450566,-500.0,0.00019726,2]
[349789708,1737431450575,-500.0,0.00019726,2]
[349789709,1737431450584,-517.40491419,0.00019726,2]
[349789710,1737431450594,-500.0,0.00019726,2]
[349789711,1737431450605,-500.0,0.00019726,2]
[349789712,1737431450616,-341.04331697,0.00019726,2]
[349789713,1737431450625,-500.0,0.00019726,2]
[349789714,1737431450634,-500.0,0.00019726,2]
[349789715,1737431450643,-840.51,0.00019726,2]
[349789716,1737431450654,-500.0,0.00019726,2]
[349789717,1737431450664,-500.0,0.00019726,2]
[349789718,1737431450673,-500.0,0.00019726,2]
[349789719,1737431450683,-500.0,0.00019726,2]
[349789720,1737431450693,-500.0,0.00019726,2]
[349789721,1737431450701,-500.0,0.00019726,2]
[349789722,1737431450711,-509.91879784,0.00019726,2]
[349789723,1737431450720,-500.0,0.00019726,2]
[349789724,1737431450730,-500.0,0.00019726,2]
[349789725,1737431450739,-588.53,0.00019726,2]
[349789726,1737431450749,-505.81622194,0.00019726,2]
[349789727,1737431450758,-500.0,0.00019726,2]
[349789728,1737431450767,-500.0,0.00019726,2]
[349789729,1737431450777,-500.0,0.00019726,2]
[349789730,1737431450786,-500.0,0.00019726,2]
[349789731,1737431450795,-500.0,0.00019726,2]
[349789732,1737431450805,-500.0,0.00019726,2]
[349789733,1737431450815,-500.0,0.00019726,2]
[349789734,1737431450824,-500.0,0.00019726,2]
[349789735,1737431450834,-500.0,0.00019726,2]
[349789736,1737431450843,-500.0,0.00019726,2]
[349789737,1737431450852,-500.0,0.00019726,2]
[349789738,1737431450862,-500.0,0.00019726,2]
[349789739,1737431450871,-500.0,0.00019726,2]
[349789740,1737431450881,-500.0,0.00019726,2]
[349789741,1737431450890,-500.0,0.00019726,2]
[349789742,1737431450901,-500.0,0.00019726,2]
[349789743,1737431450911,-500.0,0.00019726,2]
[349789744,1737431450920,-500.0,0.00019726,2]
[349789745,1737431450931,-500.0,0.00019726,2]
[349789746,1737431450942,-500.0,0.00019726,2]
[349789747,1737431450952,-500.0,0.00019726,2]
[349789748,1737431450962,-564.74008571,0.00019726,2]
[349789749,1737431450972,-645.49812712,0.00019726,2]
[349789750,1737431450983,-500.0,0.00019726,2]
[349789751,1737431450993,-500.0,0.00019726,2]
[349789752,1737431451003,-500.0,0.00019726,2]
[349789753,1737431451012,-513.63101253,0.00019726,2]
[349789754,1737431451022,-500.0,0.00019726,2]
[349789755,1737431451031,-500.0,0.00019726,2]
[349789756,1737431451041,-500.0,0.00019726,2]
[349789757,1737431451050,-500.0,0.00019726,2]
[349789758,1737431451059,-551.54949372,0.00019726,2]
[349789759,1737431451069,-500.0,0.00019726,2]
[349789760,1737431451078,-238.29,0.00019726,2]
[349789761,1737431451087,-234.40756801,0.00019726,2]
[349789762,1737431451097,-997.23,0.00019726,2]
[349789763,1737431451107,-500.0,0.00019726,2]
[349789764,1737431451117,-500.0,0.00019726,2]
[349789765,1737431451126,-500.0,0.00019726,2]
[349789766,1737431451136,-500.0,0.00019726,2]
[349789767,1737431451145,-500.0,0.00019726,2]
[349789768,1737431451157,-500.0,0.00019726,2]
[349789769,1737431451166,-500.0,0.00019726,2]
[349789770,1737431451176,-701.25,0.00019726,2]
[349789771,1737431451185,-500.0,0.00019726,2]
[349789772,1737431451195,-508.33335123,0.00019726,2]
[349789773,1737431451204,-500.0,0.00019726,2]
[349789774,1737431451214,-601.36194231,0.00019726,2]
[349789775,1737431451223,-500.0,0.00019726,2]
[349789776,1737431451233,-1414.07,0.00019726,2]
[349789777,1737431451242,-500.0,0.00019726,2]
[349789778,1737431451251,-500.0,0.00019726,2]
[349789779,1737431451261,-157.934379,0.00019726,2]
[349789780,1737431451270,-500.0,0.00019726,2]
[349789781,1737431451280,-500.0,0.00019726,2]
[349789782,1737431451290,-304.80053579,0.00019726,2]
[349789783,1737431451300,-1957.94,0.00019726,2]
[349789784,1737431451310,-500.0,0.00019726,2]
[349789785,1737431451319,-500.0,0.00019726,2]
[349789786,1737431451330,-515.45897856,0.00019726,2]
[349789787,1737431451340,-500.0,0.00019726,2]
[349789788,1737431451349,-500.0,0.00019726,2]
[349789789,1737431451359,-500.0,0.00019726,2]
[349789790,1737431451369,-152.20811288,0.00019726,2]
[349789791,1737431451381,-500.0,0.00019726,2]
[349789792,1737431451391,-500.0,0.00019726,2]
[349789793,1737431451404,-500.0,0.00019726,2]
[349789794,1737431451413,-190.983926,0.00019726,2]
[349789795,1737431451425,-500.0,0.00019726,2]
[349789796,1737431451434,-1072.38,0.00019726,2]
[349789797,1737431451445,-500.0,0.00019726,2]
[349789798,1737431451455,-1057.57,0.00019726,2]
[349789799,1737431451465,-500.0,0.00019726,2]
[349789800,1737431451474,-500.0,0.00019726,2]
[349789801,1737431451484,-509.32268982,0.00019726,2]
[349789802,1737431451493,-1040.36,0.00019726,2]
[349789803,1737431451503,-616.87,0.00019726,2]
[349789804,1737431451514,-500.0,0.00019726,2]
[349789805,1737431451523,-500.0,0.00019726,2]
[349789806,1737431451533,-481.52771057,0.00019726,2]
[349789807,1737431451544,-2085.05,0.00019726,2]
[349789808,1737431451553,-500.0,0.00019726,2]
[349789809,1737431451563,-1778.99,0.00019726,2]
[349789810,1737431451572,-634.1,0.00019726,2]
[349789811,1737431451582,-436.80181213,0.00019726,2]
[349789812,1737431451591,-500.0,0.00019726,2]
[349789813,1737431451705,-500.0,0.00019726,2]
[349789814,1737431451715,-500.0,0.00019726,2]
[349789815,1737431451725,-1286.82,0.00019726,2]
[349789816,1737431451734,-500.0,0.00019726,2]
[349789817,1737431451743,-500.0,0.00019726,2]
[349789818,1737431451754,-500.0,0.00019726,2]
[349789819,1737431451763,-1351.91,0.00019726,2]
[349789820,1737431451779,-808.1,0.00019726,2]
[349789821,1737431451788,-500.0,0.00019726,2]
[349789822,1737431451798,-500.0,0.00019726,2]
[349789823,1737431451807,-2057.31,0.00019726,2]
[349789824,1737431451817,-709.92,0.00019726,2]
[349789825,1737431451826,-860.56,0.00019726,2]
[349789826,1737431451836,-382.18897301,0.00019726,2]
[349789827,1737431451845,-500.0,0.00019726,2]
[349789828,1737431451854,-444.7682473,0.00019726,2]
[349789829,1737431451863,-500.0,0.00019726,2]
[349789830,1737431451872,-500.0,0.00019726,2]
[349789831,1737431451881,-500.0,0.00019726,2]
[349789832,1737431451891,-500.0,0.00019726,2]
[349789833,1737431451902,-500.0,0.00019726,2]
[349789834,1737431451911,-500.0,0.00019726,2]
[349789835,1737431451920,-500.0,0.00019726,2]
[349789836,1737431451929,-577.3,0.00019726,2]
[349789837,1737431451941,-692.77,0.00019726,2]
[349789838,1737431451951,-2706.85,0.00019726,2]
[349789839,1737431451960,-1366.24,0.00019726,2]
[349789840,1737431451970,-500.0,0.00019726,2]
[349789841,1737431451979,-641.22,0.00019726,2]
[349789842,1737431451988,-500.0,0.00019726,2]
[349789843,1737431451997,-500.0,0.00019726,2]
[349789844,1737431452007,-1745.41,0.00019726,2]
[349789845,1737431452017,-565.86,0.00019726,2]
[349789846,1737431452027,-832.95,0.00019726,2]
[349789847,1737431452036,-500.0,0.00019726,2]
[349789848,1737431452046,-1196.64,0.00019726,2]
[349789849,1737431452056,-2691.18,0.00019726,2]
[349789850,1737431452066,-500.0,0.00019726,2]
[349789851,1737431452076,-925.48,0.00019726,2]
[349789852,1737431452086,-500.0,0.00019726,2]
[349789853,1737431452096,-1247.91,0.00019726,2]
[349789854,1737431452106,-500.0,0.00019726,2]
[349789855,1737431452117,-500.0,0.00019726,2]
[349789856,1737431452126,-500.0,0.00019726,2]
[349789857,1737431452137,-500.0,0.00019726,2]
[349789858,1737431452147,-1943.47,0.00019726,2]
[349789859,1737431452156,-500.0,0.00019726,2]
[349789860,1737431452166,-500.0,0.00019726,2]
[349789861,1737431452178,-1120.67,0.00019726,2]
[349789862,1737431452188,-500.0,0.00019726,2]
[349789863,1737431452198,-500.0,0.00019726,2]
[349789864,1737431452208,-886.99,0.00019726,2]
[349789865,1737431452218,-198.49592292,0.00019726,2]
[349789866,1737431452227,-2125.42,0.00019726,2]
[349789867,1737431452236,-500.0,0.00019726,2]
[349789868,1737431452246,-500.0,0.00019726,2]
[349789869,1737431452255,-1434.09,0.00019726,2]
[349789870,1737431452265,-500.0,0.00019726,2]
[349789871,1737431452274,-1480.4,0.00019726,2]
[349789872,1737431452284,-500.0,0.00019726,2]
[349789873,1737431452293,-500.0,0.00019726,2]
[349789874,1737431452302,-511.03,0.00019726,2]
[349789875,1737431452312,-873.5,0.00019726,2]
[349789876,1737431452321,-500.0,0.00019726,2]
[349789877,1737431452331,-500.0,0.00019726,2]
[349789878,1737431452340,-500.0,0.00019726,2]
[349789879,1737431452349,-500.0,0.00019726,2]
[349789880,1737431452359,-500.0,0.00019726,2]
[349789881,1737431452368,-945.49,0.00019726,2]
[349789882,1737431452378,-500.0,0.00019726,2]
[349789883,1737431452388,-500.0,0.00019726,2]
[349789884,1737431452399,-500.0,0.00019726,2]
[349789885,1737431452409,-500.0,0.00019726,2]
[349789886,1737431452418,-509.1,0.00019726,2]
[349789887,1737431452428,-500.0,0.00019726,2]
[349789888,1737431452439,-1020.26,0.00019726,2]
[349789889,1737431452449,-1179.69,0.00019726,2]
[349789890,1737431452458,-1380.46,0.00019726,2]
[349789891,1737431452469,-500.0,0.00019726,2]
[349789892,1737431452479,-618.98,0.00019726,2]
[349789893,1737431452488,-500.0,0.00019726,2]
[349789894,1737431452498,-500.0,0.00019726,2]
[349789895,1737431452507,-673.28,0.00019726,2]
[349789896,1737431452516,-500.0,0.00019726,2]
[349789897,1737431452526,-500.0,0.00019726,2]
[349789898,1737431452536,-2381.85,0.00019726,2]
[349789899,1737431452545,-500.0,0.00019726,2]
[349789900,1737431452554,-1438.7,0.00019726,2]
[349789901,1737431452564,-500.0,0.00019726,2]
[349789902,1737431452573,-500.0,0.00019726,2]
[349789903,1737431452583,-500.0,0.00019726,2]
[349789904,1737431452593,-546.12,0.00019726,2]
[349789905,1737431452603,-1308.98,0.00019726,2]
[349789906,1737431452612,-500.0,0.00019726,2]
[349789907,1737431452622,-1491.71,0.00019726,2]
[349789908,1737431452632,-573.04,0.00019726,2]
[349789909,1737431452641,-500.0,0.00019726,2]
[349789910,1737431452653,-894.47,0.00019726,2]
[349789911,1737431452663,-500.0,0.00019726,2]
[349789912,1737431452677,-628.18,0.00019726,2]
[349789913,1737431452686,-500.0,0.00019726,2]
[349789914,1737431452695,-500.0,0.00019726,2]
[349789915,1737431452705,-500.0,0.00019726,2]
[349789916,1737431452714,-1534.21,0.00019726,2]
[349789917,1737431452724,-1230.77,0.00019726,2]
[349789918,1737431452733,-500.0,0.00019726,2]
[349789919,1737431452742,-681.3,0.00019726,2]
[349789920,1737431452752,-500.0,0.00019726,2]
[349789921,1737431452762,-500.0,0.00019726,2]
[349789922,1737431452771,-500.0,0.00019726,2]
[349789923,1737431452781,-500.0,0.00019726,2]
[349789924,1737431452790,-500.0,0.00019726,2]
[349789925,1737431452800,-500.0,0.00019726,2]
[349789926,1737431452809,-700.3,0.00019726,2]
[349789927,1737431452818,-500.0,0.00019726,2]
[349789928,1737431452828,-1332.19,0.00019726,2]
[349789929,1737431452837,-907.81,0.00019726,2]
[349789930,1737431452846,-500.0,0.00019726,2]
[349789931,1737431452855,-500.0,0.00019726,2]
[349789932,1737431452864,-500.0,0.00019726,2]
[349789933,1737431452873,-151.15569928,0.00019773,2]
[349789934,1737431452883,-500.0,0.00019773,2]
[349789935,1737431452892,-1345.83166353,0.00019839,2]
[349789936,1737431452904,-168.73929433,0.000199,2]
[349789937,1737431452913,-208.67537111,0.000199,2]
[349789938,1737431452923,-500.0,0.00019939,2]
[349789939,1737431452936,-500.0,0.00019939,2]
[349789940,1737431452947,-500.0,0.00019939,2]
[349789941,1737431452956,-500.0,0.00019939,2]
[349789942,1737431452965,-500.0,0.00019939,2]
[349789943,1737431452974,-500.0,0.00019939,2]
[349789944,1737431452984,-500.0,0.00019939,2]
[349789945,1737431452993,-500.0,0.00019939,2]
[349789946,1737431453002,-984.38,0.00019939,2]
[349789947,1737431453011,-500.0,0.00019939,2]
[349789948,1737431453020,-506.74137757,0.00019939,2]
[349789949,1737431453029,-500.0,0.00019939,2]
[349789950,1737431453038,-500.0,0.00019939,2]
[349789951,1737431453047,-261.50433266,0.00019939,2]
[349789952,1737431453061,-500.0,0.00019939,2]
[349789953,1737431453070,-500.0,0.00019939,2]
[349789954,1737431453080,-500.0,0.00019939,2]
[349789955,1737431453089,-500.0,0.00019939,2]
[349789956,1737431453098,-500.0,0.00019939,2]
[349789957,1737431453108,-500.0,0.00019939,2]
[349789958,1737431453117,-500.0,0.00019939,2]
[349789959,1737431453126,-500.0,0.00019939,2]
[349789960,1737431453136,-500.0,0.00019939,2]
[349789961,1737431453146,-500.0,0.00019939,2]
[349789962,1737431453158,-500.0,0.00019939,2]
[349789963,1737431453167,-500.0,0.00019939,2]
[349789964,1737431453176,-500.0,0.00019939,2]
[349789965,1737431453186,-500.0,0.00019939,2]
[349789966,1737431453195,-548.97331673,0.00019939,2]
[349789967,1737431453205,-500.0,0.00019939,2]
[349789968,1737431453214,-500.0,0.00019939,2]
[349789969,1737431453223,-500.0,0.00019939,2]
[349789970,1737431453232,-500.0,0.00019939,2]
[349789971,1737431453241,-500.0,0.00019939,2]
[349789972,1737431453251,-500.0,0.00019939,2]
[349789973,1737431453260,-500.0,0.00019939,2]
[349789974,1737431453270,-623.46,0.00019939,2]
[349789975,1737431453279,-500.0,0.00019939,2]
[349789976,1737431453288,-570.93,0.00019939,2]
[349789977,1737431453298,-586.4,0.00019939,2]
[349789978,1737431453307,-514.09004656,0.00019939,2]
[349789979,1737431453323,-540.07,0.00019939,2]
[349789980,1737431453485,-500.0,0.00019939,2]
[349789981,1737431453495,-500.0,0.00019939,2]
[349789982,1737431453505,-500.0,0.00019939,2]
[349789983,1737431453514,-500.0,0.00019939,2]
[349789984,1737431453524,-500.0,0.00019939,2]
[349789985,1737431453533,-572.74,0.00019939,2]
[349789986,1737431453542,-500.0,0.00019939,2]
[349789987,1737431453552,-741.83,0.00019939,2]
[349789988,1737431453562,-728.53,0.00019939,2]
[349789989,1737431453571,-728.53,0.00019939,2]
[349789990,1737431453581,-500.0,0.00019939,2]
[349789991,1737431453591,-535.34,0.00019939,2]
[349789992,1737431453601,-500.0,0.00019939,2]
[349789993,1737431453610,-500.0,0.00019939,2]
[349789994,1737431453620,-835.45,0.00019939,2]
[349789995,1737431453629,-500.0,0.00019939,2]
[349789996,1737431453639,-500.0,0.00019939,2]
[349789997,1737431453648,-500.0,0.00019939,2]
[349789998,1737431453659,-503.48,0.00019939,2]
[349789999,1737431453669,-2737.18,0.00019939,2]
[349790000,1737431453678,-590.16098779,0.00019939,2]
[349790001,1737431453688,-500.0,0.00019939,2]
[349790002,1737431453697,-500.0,0.00019939,2]
[349790003,1737431453706,-500.0,0.00019939,2]
[349790004,1737431453716,-500.0,0.00019939,2]
[349790005,1737431453725,-500.0,0.00019939,2]
[349790006,1737431453734,-500.0,0.00019939,2]
[349790007,1737431453744,-500.0,0.00019939,2]
[349790008,1737431453755,-500.0,0.00019939,2]
[349790009,1737431453764,-3365.89,0.00019939,2]
[349790010,1737431453774,-500.0,0.00019939,2]
[349790011,1737431453784,-500.0,0.00019939,2]
[349790012,1737431453794,-500.0,0.00019939,2]
[349790013,1737431453803,-500.0,0.00019939,2]
[349790014,1737431453812,-500.0,0.00019939,2]
[349790015,1737431453821,-500.0,0.00019939,2]
[349790016,1737431453830,-500.0,0.00019939,2]
[349790017,1737431453839,-503.74647457,0.00019939,2]
[349790018,1737431453847,-500.0,0.00019939,2]
[349790019,1737431453857,-518.49359378,0.00019939,2]
[349790020,1737431453866,-500.0,0.00019939,2]
[349790021,1737431453875,-500.0,0.00019939,2]
[349790022,1737431453885,-500.0,0.00019939,2]
[349790023,1737431453894,-500.0,0.00019939,2]
[349790024,1737431453904,-1871.28,0.00019939,2]
[349790025,1737431453913,-623.08678844,0.00019939,2]
[349790026,1737431453922,-500.0,0.00019939,2]
[349790027,1737431453931,-500.0,0.00019939,2]
[349790028,1737431453942,-500.0,0.00019939,2]
[349790029,1737431453951,-523.59012554,0.00019939,2]
[349790030,1737431453961,-500.0,0.00019939,2]
[349790031,1737431453970,-500.0,0.00019939,2]
[349790032,1737431453979,-1519.97,0.00019939,2]
[349790033,1737431453988,-500.0,0.00019939,2]
[349790034,1737431453997,-554.98,0.00019999,2]
[349790035,1737431454007,-500.0,0.00019999,2]
[349790036,1737431454017,-500.0,0.00019999,2]
[349790037,1737431454026,-692.94,0.00019999,2]
[349790038,1737431454035,-500.0,0.00019999,2]
[349790039,1737431454044,-548.14,0.00019999,2]
[349790040,1737431454054,-1043.76,0.00019999,2]
[349790041,1737431454063,-500.0,0.00019999,2]
[349790042,1737431454074,-748.19,0.00019999,2]
[349790043,1737431454084,-687.73,0.00019999,2]
[349790044,1737431454093,-1914.62,0.00019999,2]
[349790045,1737431454102,-3718.34,0.00019999,2]
[349790046,1737431454111,-616.88,0.00019999,2]
[349790047,1737431454120,-629.86,0.00019999,2]
[349790048,1737431454129,-2023.46,0.00019999,2]
[349790049,1737431454139,-500.0,0.00019999,2]
[349790050,1737431454148,-636.37,0.00019999,2]
[349790051,1737431454160,-999.61,0.00019999,2]
[349790052,1737431454169,-1261.99,0.00019999,2]
[349790053,1737431454178,-500.0,0.00019999,2]
[349790054,1737431454188,-1000.0,0.00019999,2]
[349790055,1737431454198,-1196.36,0.00019999,2]
[349790056,1737431454207,-549.65,0.00019999,2]
[349790057,1737431454217,-1575.05,0.00019999,2]
[349790058,1737431454226,-537.01212071,0.00019999,2]
[349790059,1737431454235,-500.0,0.0002,2]
[349790060,1737431454244,-500.0,0.0002,2]
[349790061,1737431454253,-500.0,0.0002,2]
[349790062,1737431454263,-500.0,0.0002,2]
[349790063,1737431454272,-500.0,0.0002,2]
[349790064,1737431454281,-500.0,0.0002,2]
[349790065,1737431454291,-500.0,0.0002,2]
[349790066,1737431454300,-500.0,0.0002,2]
[349790067,1737431454309,-507.57303565,0.0002,2]
[349790068,1737431454318,-500.0,0.0002,2]
[349790069,1737431454327,-507.84520989,0.0002,2]
[349790070,1737431454336,-500.0,0.0002,2]
[349790071,1737431454344,-500.0,0.0002,2]
[349790072,1737431454353,-500.0,0.0002,2]
[349790073,1737431454362,-2605.56,0.0002,2]
[349790074,1737431454372,-507.06,0.0002,2]
[349790075,1737431454382,-500.0,0.0002,2]
[349790076,1737431454391,-500.0,0.0002,2]
[349790077,1737431454404,-500.0,0.0002,2]
[349790078,1737431454413,-502.47231472,0.0002,2]
[349790079,1737431454423,-500.0,0.0002,2]
[349790080,1737431454432,-500.0,0.0002,2]
[349790081,1737431454441,-500.0,0.0002,2]
[349790082,1737431454450,-500.0,0.0002,2]
[349790083,1737431454460,-500.0,0.0002,2]
[349790084,1737431454470,-500.0,0.0002,2]
[349790085,1737431454479,-500.0,0.0002,2]
[349790086,1737431454488,-643.06,0.0002,2]
[349790087,1737431454498,-500.0,0.0002,2]
[349790088,1737431454507,-500.0,0.0002,2]
[349790089,1737431454516,-247.58484209,0.0002,2]
[349790090,1737431454525,-500.0,0.0002,2]
[349790091,1737431454534,-500.0,0.0002,2]
[349790092,1737431454544,-500.0,0.0002,2]
[349790093,1737431454553,-500.0,0.0002,2]
[349790094,1737431454562,-500.0,0.0002,2]
[349790095,1737431454571,-804.89,0.0002,2]
[349790096,1737431454580,-500.0,0.0002,2]
[349790097,1737431454589,-500.0,0.0002,2]
[349790098,1737431454598,-508.10586194,0.0002,2]
[349790099,1737431454607,-554.41233393,0.0002,2]
[349790100,1737431454616,-500.0,0.0002,2]
[349790101,1737431454625,-500.0,0.0002,2]
[349790102,1737431454634,-500.0,0.0002,2]
[349790103,1737431454643,-500.0,0.0002,2]
[349790104,1737431454653,-500.0,0.0002,2]
[349790105,1737431454663,-500.0,0.0002,2]
[349790106,1737431454672,-500.0,0.0002,2]
[349790107,1737431454681,-500.0,0.0002,2]
[349790108,1737431454691,-517.83537555,0.0002,2]
[349790109,1737431454699,-500.0,0.0002,2]
[349790110,1737431454708,-500.0,0.0002,2]
[349790111,1737431454718,-500.0,0.0002,2]
[349790112,1737431454727,-500.0,0.0002,2]
[349790113,1737431454736,-520.25,0.0002,2]
[349790114,1737431454745,-500.0,0.0002,2]
[349790115,1737431454755,-500.0,0.0002,2]
[349790116,1737431454764,-503.53,0.0002,2]
[349790117,1737431454773,-500.0,0.0002,2]
[349790118,1737431454782,-500.0,0.0002,2]
[349790119,1737431454791,-997.65,0.0002,2]
[349790120,1737431454800,-156.37704385,0.0002,2]
[349790121,1737431454809,-500.0,0.0002,2]
[349790122,1737431454818,-500.0,0.0002,2]
[349790123,1737431454827,-500.0,0.0002,2]
[349790124,1737431454837,-500.0,0.0002,2]
[349790125,1737431454846,-500.0,0.0002,2]
[349790126,1737431454855,-500.0,0.0002,2]
[349790127,1737431454864,-500.0,0.0002,2]
[349790128,1737431454874,-500.0,0.0002,2]
[349790129,1737431454883,-840.51,0.0002,2]
[349790130,1737431454891,-500.0,0.0002,2]
[349790131,1737431454901,-500.0,0.0002,2]
[349790132,1737431454911,-500.0,0.0002,2]
[349790133,1737431455017,-500.0,0.0002,2]
[349790134,1737431455026,-378.65703469,0.0002,2]
[349790135,1737431455035,-500.0,0.0002,2]
[349790136,1737431455044,-500.0,0.0002,2]
[349790137,1737431455053,-588.53,0.0002,2]
[349790138,1737431455062,-500.0,0.0002,2]
[349790139,1737431455071,-500.0,0.0002,2]
[349790140,1737431455079,-500.0,0.0002,2]
[349790141,1737431455089,-500.0,0.0002,2]
[349790142,1737431455098,-500.0,0.0002,2]
[349790143,1737431455107,-500.0,0.0002,2]
[349790144,1737431455116,-500.0,0.0002,2]